Cogmind - Beta 14 @@@ ROGUE MODE // 2024.08.17 @ 20:39:19 Player: THN-L0C Result: Destroyed by DK-O0Y(R) with Subdweller Laser Performance ------------- Evolutions (0) 0 Regions Visited (2) 400 Robots Destroyed (15) 75 Value Destroyed (361) 361 Prototype IDs (0) 0 Alien Tech Used (0) 0 Bonus (0) 0 TOTAL SCORE: 836 Bonus ------- None Cogmind --------- Core Integrity 0/250 Matter 195/300 Energy 53/100 System Corruption 3% Temperature Cool (6) Movement Rolling (130) Ox2 Location -10/Subcaves Parts ------- > --- POWER (1) -------- (None) > --- PROPULSION (2) --- Compact Wheel > --- UTILITY (2) ------ High-capacity Storage Unit Structural Scanner > --- WEAPON (2) ------- EM Shotgun Autogun > --- INVENTORY (20) --- Light Ion Engine Aluminum Leg Cooling System Cooling System Cooling System High-capacity Battery (250) Large Matter Pod (0) Improved Terrain Scanner Seismic Detector Improved Targeting Computer Improved Targeting Computer EM Shotgun EM Shotgun EM Shotgun Particle Cannon Autogun Autogun Autogun Datajack Maul Peak State ------------ > --- POWER ------------ Light Ion Engine > --- PROPULSION ------- Wheel Compact Wheel > --- UTILITY ---------- High-capacity Storage Unit Structural Scanner > --- WEAPON ----------- Autogun Autogun > --- INVENTORY -------- Light Ion Engine Aluminum Leg Cooling System Cooling System Cooling System Cooling System Medium Matter Pod Improved Terrain Scanner Seismic Detector EM Shotgun EM Shotgun EM Shotgun EM Shotgun Autogun Autogun Light Cannon Light Cannon Mining Laser [Rating: 12] Favorites ----------- Power Light Ion Engine Engine Light Ion Engine Propulsion Compact Wheel Leg Aluminum Leg Wheel Compact Wheel Utility Structural Scanner Device Structural Scanner Storage High-capacity Storage Unit Weapon Autogun Energy Gun EM Shotgun Energy Cannon Particle Cannon Ballistic Gun Autogun Special Weapon Mining Laser Impact Weapon Maul Special Melee Weapon Datajack Build | -11 -10 -10 ------- Run | Yrd Mat Sub Slots Evolved . | . . . Power . | . . . Propulsion . | . . . Utility . | . . . Weapon . | . . . Parts Attached 35 | 7 23 5 Power 3 | 1 2 . Engine 3 | 1 2 . Core . | . . . Reactor . | . . . Propulsion 6 | 2 4 . Treads . | . . . Leg 1 | . 1 . Wheel 5 | 2 3 . Hover . | . . . Flight . | . . . Utility 5 | 2 3 . Device 2 | 1 1 . Storage 3 | 1 2 . Processor . | . . . Hackware . | . . . Protection . | . . . Artifact . | . . . Weapon 21 | 2 14 5 Energy Gun 7 | 2 3 2 Energy Cannon 2 | . 2 . Ballistic Gun 7 | . 6 1 Ballistic Cannon . | . . . Launcher . | . . . Special Weapon 1 | . 1 . Impact Weapon 3 | . 1 2 Slashing Weapon . | . . . Piercing Weapon . | . . . Special Melee Weapon 1 | . 1 . Unidentified Prototypes . | . . . Parts Lost 2 | . . 2 Power 1 | . . 1 Propulsion 1 | . . 1 Utility . | . . . Weapon . | . . . Highest Loss Streak 1 | . . 1 To Critical Strikes . | . . . Average Slot Usage (%) 98 | . 99 95 Engine 13 | . 14 10 Wheel 27 | . 27 27 Device 14 | . 14 14 Storage 14 | . 14 14 Energy Gun 10 | . 9 15 Energy Cannon 2 | . 2 . Ballistic Gun 12 | . 13 10 Special Weapon 1 | . 1 . Impact Weapon 1 | . . 3 Peak Build Rating 12 | 9 12 12 Average Rating 10 | 5 10 11 On Entrance 7 | . 9 12 Naked Turns . | . . . Heaviest Build 52 | 12 52 50 Greatest Support 26 | 26 26 26 Greatest Overweight (x) 4 | . 4 2 Average Overweight (x) . | . 1 1 Largest Inventory Capacity 20 | 8 20 20 Average Capacity 18 | 7 18 20 Most Carried 20 | 2 20 20 Average Carried 15 | . 15 20 Final Capacity 20 | 8 20 20 Final Carried 20 | 2 20 20 Class Distribution -------------------- 100% | Mutant Dominant Class ---------------- Mutant | -10/Materials Mutant | -10/Subcaves Resources | -11 -10 -10 ----------- Run | Yrd Mat Sub Matter Collected 543 | 209 278 56 Remotely . | . . . Salvage Created 505 | 41 298 166 Parts 36 | 6 25 5 Haulers Intercepted . | . . . Recyclers Shooed 1 | 1 . . Parts Field Recycled . | . . . Retrieved Matter . | . . . Parts Self-Destructed 9 | . . 9 Prevented . | . . . Kills | -11 -10 -10 ------- Run | Yrd Mat Sub Combat Hostiles Destroyed 10 | . 7 3 Guns 6 | . 5 1 Cannons 2 | . 2 . AOE 1 | . . 1 Classes Destroyed 5 | 1 3 1 Tunneler 2 | 2 . . Watcher 3 | . 3 . Swarmer 3 | . 3 . Grunt 4 | . 4 . Subdweller 3 | . . 3 Best Kill Streak 5 | 1 5 2 Combat Bots Only 5 | . 5 2 Max Kills in Single Turn 2 | 1 2 1 Gunslinging 1 | . 1 . Exploded 1 | . . 1 Melee . | . . . Uniques/NPCs Destroyed . | . . . Combat | -11 -10 -10 -------- Run | Yrd Mat Sub Hostile Shots Fired 63 | . 37 26 Missed 16 | . 8 8 Damage Taken 717 | . 298 419 Core 251 | . 83 168 Absorbed by Shields . | . . . Regen/Repaired (Parts) 34 | . 34 . Core Remaining (%) 100 | 100 . . Volleys Fired 60 | 7 38 15 Largest 2 | 1 2 2 Hottest 100 | 40 100 90 Shots Fired 90 | 7 55 28 Gun 75 | 7 40 28 Cannon 10 | . 10 . Launcher . | . . . Special 5 | . 5 . Kinetic 14 | . 7 7 Thermal 39 | 7 32 . Explosive . | . . . Electromagnetic 37 | . 16 21 Robot Hit Streak 22 | 3 12 22 Robot Miss Streak 3 | 1 3 2 Penetration Max . | . . . Secondary Targets 1 | . 1 . Max Gunslinging Chain 1 | . 1 . Shots Hit Robots 64 | 5 34 25 Core Hits 26 | 2 16 8 Critical Kills . | . . . Critical Parts Destroyed . | . . . Critical Strikes . | . . . Melee Attacks 4 | . 2 2 Impact 4 | . 2 2 Slashing . | . . . Piercing . | . . . Sneak Attacks . | . . . Combat Hostiles . | . . . Follow-up Attacks . | . . . Damage Inflicted 1066 | 57 574 435 Guns 755 | 57 326 372 Cannons 159 | . 159 . Explosions 150 | . 87 63 Melee . | . . . Ramming 2 | . 2 . Kinetic 128 | . 71 57 Thermal 462 | 57 342 63 Explosive . | . . . Electromagnetic 474 | . 159 315 Impact . | . . . Slashing . | . . . Piercing . | . . . Highest Corruption 3 | . 3 3 Average Corruption 2 | . 2 3 Corruption Purged . | . . . Corruption Blocked . | . . . Effects 14 | . 9 5 Message Errors 1 | . . 1 Matter Fused 6 | . 4 2 Heat Flow Errors 1 | . 1 . Parts Rejected 1 | . 1 . Data Loss (minor) 3 | . 2 1 Misfires 1 | . 1 . Weapon Failures 1 | . . 1 Overload Shots . | . . . Overflow Damage 52 | . . 52 Projectiles . | . . . Explosions 52 | . . 52 Melee . | . . . Knockbacks . | . . . Impact . | . . . Kinetic . | . . . Secondary . | . . . Self-Inflicted Damage 63 | . 1 62 Shots 1 | . . 1 Rammed 1 | . 1 . Targets Rammed 1 | . 1 . Kicked . | . . . Crushed . | . . . Highest Temperature 308 | . 308 . Average Temperature 78 | . 78 . Received Heat Transfer 183 | . 117 66 Effects 2 | . 2 . Energy Bleed 1 | . 1 . Short Circuit 1 | . 1 . Siege Activations . | . . . Robots Corrupted 1 | . . 1 Combat Hostiles 1 | . . 1 Parts Fried 5 | . . 5 Impact Corruptions . | . . . Robots Melted . | . . . Combat Hostiles . | . . . Parts Melted 2 | . 2 . Heat Transferred 759 | 125 584 50 Parts Sabotaged . | . . . Parts Stolen . | . . . Parts Stripped . | . . . Power Chain Reactions 2 | . 1 1 Alert | -11 -10 -10 ------- Run | Yrd Mat Sub Peak Influence 178 | 10 178 . Initial 6 | . 6 . Average 56 | 3 60 . Maximum Alert Level . | . . . Low Security (%) 100 | 100 100 . Level 1 . | . . . Level 2 . | . . . Level 3 . | . . . Level 4 . | . . . Level 5 . | . . . High Security . | . . . Max Security . | . . . Squads Dispatched 2 | . 2 . Investigation 1 | . 1 . Extermination . | . . . Reinforcement 1 | . 1 . Assault . | . . . Garrison . | . . . Intercept . | . . . Searches Triggered . | . . . Construction Impeded . | . . . Haulers Reinforced . | . . . Active Scanning Responses . | . . . Cargo Convoy Interrupts . | . . . Stealth | -11 -10 -10 --------- Run | Yrd Mat Sub Distress Signals 2 | . 2 . Communications Jammed . | . . . Distress Signals . | . . . Times Spotted 19 | . 15 4 Peak Tracking Total 4 | . 4 2 Tactical Retreats . | . . . Traps | -11 -10 -10 ------- Run | Yrd Mat Sub Traps Triggered 1 | . 1 . Indirectly . | . . . Trap Hack Attempts . | . . . Triggered . | . . . Disarmed . | . . . Reprogrammed . | . . . Reused . | . . . Traps Extracted . | . . . Installed . | . . . Triggered . | . . . Machines | -11 -10 -10 ---------- Run | Yrd Mat Sub Machines Disabled . | . . . Max in Single Turn . | . . . Machines Repaired . | . . . Machines Dismantled . | . . . Machines Sabotaged . | . . . Overloaded Fab Kills . | . . . Hacking | -11 -10 -10 --------- Run | Yrd Mat Sub Machines Accessed 8 | . 8 . Terminals 7 | . 7 . Fabricators . | . . . Repair Stations 1 | . 1 . Recycling Units . | . . . Scanalyzers . | . . . Garrison Access . | . . . Total Hacks 33 | . 33 . Successful 18 | . 18 . Failed 14 | . 14 . Catastrophic . | . . . Database Lockouts 1 | . 1 . Manual 24 | . 24 . Terminals 31 | . 31 . Fabricators . | . . . Repair Stations 2 | . 2 . Recycling Units . | . . . Scanalyzers . | . . . Garrison Access . | . . . Terminal Hacks 9 | . 9 . Robot Analysis 2 | . 2 . Maintenance Status 1 | . 1 . Surveillance Status 1 | . 1 . Patrol Status 1 | . 1 . Transport Status 1 | . 1 . Assault Status 1 | . 1 . Hauler Manifests 1 | . 1 . Zone Layout 1 | . 1 . Fabricator Hacks . | . . . Repair Station Hacks 2 | . 2 . Scan Component 1 | . 1 . Repair 1 | . 1 . Recycling Unit Hacks . | . . . Scanalyzer . | . . . Garrison Access Hacks . | . . . Unauthorized Hacks 7 | . 7 . Terminals 7 | . 7 . Assimilate 1 | . 1 . Botnet 6 | . 6 . Fabricators . | . . . Repair Stations . | . . . Recycling Units . | . . . Scanalyzers . | . . . Garrison Access . | . . . Data Cores Recovered . | . . . Used . | . . . Hacking Detections 6 | . 6 . Full Trace Events 1 | . 1 . Feedback Events 1 | . 1 . Corruption 1 | . 1 . Feedback Blocked . | . . . Robot Schematics Acquired . | . . . Robots Built . | . . . Authchips . | . . . Time . | . . . Total Robot Build Rating . | . . . Part Schematics Acquired . | . . . Parts Built . | . . . Authchips . | . . . Time . | . . . Total Part Build Rating . | . . . Parts Repaired 1 | . 1 . Time 26 | . 26 . Parts Recycled . | . . . Recycled Matter . | . . . Retrieved Matter . | . . . Retrieved Components . | . . . Parts Scanalyzed . | . . . Part Schematics Acquired . | . . . Parts Damaged . | . . . Bothacking | -11 -10 -10 ------------ Run | Yrd Mat Sub Used RIF Installer . | . . . Robots Hacked . | . . . Non-combat . | . . . Combat . | . . . Robot Hacks Applied . | . . . Relay Couplers Released . | . . . Fabnet Peak Effective % . | . . . Robots Rewired . | . . . Allies Hacked . | . . . Hacks Repelled . | . . . Allies | -11 -10 -10 -------- Run | Yrd Mat Sub Total Allies 1 | . 1 . Largest Group 1 | . 1 1 Highest-Rated Group 10 | . 10 10 Highest-Rated Ally 10 | . 10 10 Total Orders 1 | . 1 . FOLLOW 1 | . 1 . Ally Attacks . | . . . Total Damage . | . . . Kills . | . . . Allies Corrupted . | . . . Allies Melted . | . . . Intel | -11 -10 -10 ------- Run | Yrd Mat Sub Robot Analysis Total 2 | . 2 . Derelict Logs Recovered . | . . . Drone Launches . | . . . Drone Recoveries . | . . . Exploration | -11 -10 -10 ------------- Run | Yrd Mat Sub Turns Passed 1476 | 73 1125 278 Spaces Moved 1120 | 56 857 207 Core 15 | 15 . . Treads . | . . . Legs . | . . . Wheels 1105 | 41 857 207 Hover . | . . . Flight . | . . . Fastest Speed 50 | 50 90 105 Average Speed 103 | 80 105 105 Slowest Speed 145 | 100 145 130 Overloaded Moves . | . . . Propulsion Burnouts . | . . . Robots Hopped . | . . . Cave-ins Triggered . | . . . Exploration Rate (%) 39 | 4 96 17 Regions Visited 2 Branch Regions 1 Pre-discovered Areas . | . . . Known Exits Taken . | . . . Unknown Exits Taken 2 | 1 1 . Scrap Searched . | . . . Spaces Dug 8 | . 7 1 Terrain Destroyed 18 | . 12 6 Melee 3 | . 2 1 Projectile 5 | . 5 . AOE 10 | . 5 5 Terrain Rammed . | . . . Walls Destroyed . | . . . Machines Disabled . | . . . Actions | -11 -10 -10 --------- Run | Yrd Mat Sub Total 1317 | 73 1011 233 Wait 58 | 1 53 4 Move 1118 | 55 856 207 Hop . | . . . Pick Up 26 | 3 23 . Fast Attach 11 | 6 5 . Attach 2 | 1 1 . Detach 3 | . 3 . Swap 22 | . 17 5 Drop 12 | . 12 . Fire 60 | 7 38 15 Melee 4 | . 2 2 Ram 1 | . 1 . Kick . | . . . Crush . | . . . Escape Stasis . | . . . Rewire . | . . . Trap . | . . . Miscellaneous . | . . . Route ------- -11/Scrapyard -10/Materials (discovered 4 exits: [*Mat x2] / [*Min] / [*Sub]) -10/Subcaves History --------- Turn | Location | Event 4 | -11/Scrapyard | Discovered new exit (range 16) 74 | -11/Scrapyard | Entered Materials 190 | -10/Materials | Discovered new exit (range 12) 229 | -10/Materials | Discovered new exit (range 16) 331 | -10/Materials | Build established: Mutant 654 | -10/Materials | Discovered new exit (range 6) 775 | -10/Materials | Discovered new exit (range 8) 885 | -10/Materials | Repaired Wheel 1031 | -10/Materials | Central database locked down 1199 | -10/Materials | Entered Subcaves 1199 | -10/Subcaves | Accompanied by 1 ally 1272 | -10/Subcaves | A swath of the cavern ceiling suddenly collapsed 1382 | -10/Subcaves | Core integrity fell below 50% 1470 | -10/Subcaves | Core integrity fell below 20% 1477 | -10/Subcaves | Destroyed by DK-O0Y(R) with Subdweller Laser Last Messages --------------- 01319_ System corrupted: Matter fused (-8). 01380_ System corrupted: EM Shotgun failed to cycle. 01384_ 11-XUS(R) system terminally corrupted. 01384_ Disposable Heat Sink fried. 01384_ Sub. Monowheel fried. 01392_ Chain reaction triggered in Sub. Power Source. 01392_ Sub. Monowheel fried. 01392_ Disposable Heat Sink fried. 01392_ Sub. Optics fried. 01392_ 5F-S5V(R) destroyed. 01392_ Lgt. Ion Engine destroyed. 01392_ Destroyed Lgt. Ion Engine. 01395_ Acquired 16 matter. 01396_ Acquired 40 matter. 01400_ System corrupted: Matter fused (-8). 01411_ Subatomizers dissect the Corrupted Sub. Power Source. 01419_ System corrupted: Component data lost. 01447_ Subatomizers dissect the Corrupted Sub. Power Source. 01462_ Wheel destroyed. 01472_ B8-HJ9(R) destroyed. Map ----- +----------------------------------------------------+ | ?????????????## ##### ?????????????? | | ?????????????### #### ##??????????? | | ?????????????### ##?? ###??????????? | | ?????????????## ###??? ##??????????? | | ?????????????### ###???"?????????????? | | ?????????????### ##??????????????????? | | ??????????????## ###?????????????????? | | ??????????????## ####????????????????? | | ??????????????### ########???????????? | | ?????????????#### ########??????????? | | ?????????????### ###??????????? | | ?????????????## "" ##??????????? | | ?????????????## "" ##??????????? | | ?????????????## ""##??????????? | | ?????????????## ## "##??????????? | | ?????????????### ### ##????????? # | | ?????????????### #### ###????????### | | ??????????????### #### ###???????? # | | ??????????????## # ## ####????????? | | ??????????????### ## # #####??????# # | | ??????????????### # ##??????##### ### | | ???????????????## # ####??????#### ## | | ??????????????### !&[ ##?####### ## | | ??????????????### &%# ########### # ??? | | ??????????????## =# ##### # # ###??? | | ??????????????## @ R ##### ##???? | | ?????????????#### ## #### #### ####???? | | ?????????????### # #### ### ####???? | | ?????????????## # #### " ###????? | | ?????????????## "### "" ####???? | | ?????????????## "### " ###???? | | ?????????????###### * "#### " # #??? | | ?????????????######;! | ## "### " # ##??? | | ?????????????????##;;; ###"#### " ###?? | | ?????????????????##### ######## "# ##?? | | ?????????????????##" ########### ##?? | | ?????????????????##" ###???##### ###?? | | ?????????????????##" "###??????? # ?? | | ?????????????????## "" ##??????? ??? | | ?????????????????##### ""###???????? ## | | ?????????????????###########???????? #### | | ????????????????????#######????????? #### | | ????????????????????????????????????? ##?? | | ?????????????????????????????????????????? | | ?????????????????????????????????????????? | | ?????????????????????????????????????????? | | ?????????????????????????????????????????? | | ?????????????????????????????????????????? | | ?????????????????????????????????????????? | | ?????????????????????????????????????????? | +----------------------------------------------------+ Best States ------------- Heat Dissipation 25 Energy Generation 10 Energy Capacity 125 Matter Stores 300 Matter Capacity 300 Sight Range 16 Terrain Scan Range 16 Terrain Scan Density 10 Evasion (%) 42 Item Schematics ----------------- None Robot Schematics ------------------ None Fabricated ------------ Nothing Alien Tech Used ----------------- None Achievements -------------- None Challenges ------------ None Game ------ Seed FlyingMappingMonowheel Manual? 0 Play Time 00:21:55 Cumulative 57.7 hours Start 2024.08.17 @ 20:09:38 End 2024.08.17 @ 20:39:19 Sessions 1 Manual Loads 0 Difficulty Rogue Special Mode None Game No. 61 Rogue 61 Adventurer 0 Explorer 0 Win Type - Total 0 Types 0/0/0/0/0/0/0/0/0 Lore% 40 Gallery% 45 Achievement% 36 Wizard Run 0 Options --------- Layout 2 ASCII 0 Keyboard 1 Movement Vi Keybinds 0 Fullscreen 1 Font 32/SmallcapsGlow Map View 77x44 Zoom Use 0% Tactical HUD 1 Map Filters NONE Filters NONE Steam 1 RUN: d6d80b35-c05a-4c6f-8d4a-c937dd7682d5